bitfinex/quotes_BTCUSD_20230831
["timestamp","ask_amount","ask_price","bid_price","bid_amount"]
[1693518720562,0.11064226,26014.0,26013.0,2.93872178]
[1693518720768,0.11064226,26014.0,26013.0,2.93896178]
[1693518721114,0.11064226,26014.0,26013.0,2.93596178]
[1693518721307,0.11064226,26014.0,26013.0,2.93656178]
[1693518721507,0.11064226,26014.0,26013.0,2.93776178]
[1693518721684,0.11064226,26014.0,26013.0,2.93836178]
[1693518722027,0.11064226,26014.0,26013.0,2.93824178]
[1693518722188,0.11064226,26014.0,26013.0,2.93860178]
[1693518722384,0.11064226,26014.0,26013.0,2.93836178]
[1693518722593,0.11064226,26014.0,26013.0,2.93860178]
[1693518722816,0.11064226,26014.0,26013.0,2.91592178]
[1693518723367,0.11064226,26014.0,26013.0,2.91544178]
[1693518723541,0.11064226,26014.0,26013.0,2.91532178]
[1693518723743,0.11064226,26014.0,26013.0,2.91449178]
[1693518723924,0.11064226,26014.0,26013.0,2.91617178]
[1693518724333,0.11064226,26014.0,26013.0,2.91665178]
[1693518724566,0.11064226,26014.0,26013.0,2.91689178]
[1693518724779,0.24881956,26014.0,26013.0,2.91605178]
[1693518724975,0.24881956,26014.0,26013.0,2.91353178]
[1693518725129,0.24881956,26014.0,26013.0,2.91593178]
[1693518725358,0.24381956,26014.0,26013.0,2.91833178]
[1693518725585,0.24381956,26014.0,26013.0,2.91929178]
[1693518725787,0.24381956,26014.0,26013.0,2.91749178]
[1693518725987,0.24381956,26014.0,26013.0,2.91725178]
[1693518726309,0.24381956,26014.0,26013.0,2.91809178]
[1693518726510,0.24381956,26014.0,26013.0,2.91869178]
[1693518726669,0.24381956,26014.0,26013.0,2.91953178]
[1693518726871,0.24381956,26014.0,26013.0,2.91869178]
[1693518727382,0.24381956,26014.0,26013.0,2.91941178]
[1693518727581,0.24381956,26014.0,26013.0,2.91881178]
[1693518727854,0.24381956,26014.0,26013.0,2.91713178]
[1693518727980,0.24381956,26014.0,26013.0,2.91929178]
[1693518728200,0.24381956,26014.0,26013.0,2.91953178]
[1693518728400,0.24381956,26014.0,26013.0,2.92073178]
[1693518728609,0.24381956,26014.0,26013.0,2.93021178]
[1693518728807,0.10564226,26014.0,26013.0,2.93621178]
[1693518729018,0.10564226,26014.0,26013.0,2.92913178]
[1693518729209,0.10564226,26014.0,26013.0,2.92949178]
[1693518729407,0.10564226,26014.0,26013.0,2.93309178]
[1693518729611,0.10564226,26014.0,26013.0,2.93417178]
[1693518729819,0.10564226,26014.0,26013.0,2.92985178]
[1693518730021,0.10564226,26014.0,26013.0,2.92721178]
[1693518730218,0.10564226,26014.0,26013.0,2.93429178]
[1693518730488,0.10564226,26014.0,26013.0,2.93261178]
[1693518730671,0.10564226,26014.0,26013.0,2.93417178]
[1693518730880,0.10064226,26014.0,26013.0,2.93333178]
[1693518731224,0.10064226,26014.0,26013.0,2.92781178]
[1693518731439,0.10064226,26014.0,26013.0,2.93429178]
[1693518731645,0.10064226,26014.0,26013.0,2.93621178]
[1693518731891,0.10064226,26014.0,26013.0,2.94149178]
[1693518732092,0.10064226,26014.0,26013.0,2.94125178]
[1693518732294,0.10064226,26014.0,26013.0,2.94269178]
[1693518732674,0.10064226,26014.0,26013.0,2.94125178]
[1693518732828,0.10064226,26014.0,26013.0,2.74857178]
[1693518732988,0.10064226,26014.0,26013.0,2.94101178]
[1693518733186,0.10064226,26014.0,26013.0,2.94053178]
[1693518733432,0.10064226,26014.0,26013.0,2.94125178]
[1693518733878,0.10064226,26014.0,26013.0,2.94041178]
[1693518734080,0.10064226,26014.0,26013.0,2.94185178]
[1693518734296,0.10064226,26014.0,26013.0,2.94269178]
[1693518734494,0.10064226,26014.0,26013.0,2.94257178]
[1693518734634,0.10064226,26014.0,26013.0,2.94233178]
[1693518734984,0.10064226,26014.0,26013.0,2.94197178]
[1693518735166,0.10064226,26014.0,26013.0,2.94185178]
[1693518735359,0.10064226,26014.0,26013.0,2.93297178]
[1693518735593,0.10064226,26014.0,26013.0,2.93585178]
[1693518735743,0.10064226,26014.0,26013.0,2.90285178]
[1693518735744,0.15570136,26014.0,26013.0,2.90285178]
[1693518736128,0.15570136,26014.0,26013.0,2.90345178]
[1693518736369,0.15570136,26014.0,26013.0,2.90357178]
[1693518736570,0.15570136,26014.0,26013.0,2.90321178]
[1693518736772,0.15570136,26014.0,26013.0,2.90393178]
[1693518736975,0.15570136,26014.0,26013.0,2.90657178]
[1693518737175,0.1381773,26014.0,26013.0,2.90669178]
[1693518737378,0.15570136,26014.0,26013.0,2.90525178]
[1693518737577,0.01752406,26014.0,26013.0,2.90513178]
[1693518737759,0.01752406,26014.0,26013.0,2.90561178]
[1693518738118,0.01752406,26014.0,26013.0,2.90585178]
[1693518738319,0.01752406,26014.0,26013.0,2.90549178]
[1693518738678,0.01752406,26014.0,26013.0,2.90597178]
[1693518738877,0.01752406,26014.0,26013.0,2.90525178]
[1693518739098,0.15570136,26014.0,26013.0,2.90549178]
[1693518739412,0.01752406,26014.0,26013.0,2.90525178]
[1693518739610,0.15570136,26014.0,26013.0,2.90549178]
[1693518739994,0.15570136,26014.0,26013.0,2.89097178]
[1693518740198,0.37993777,26014.0,26013.0,1.867385]
[1693518740424,0.29809169,26014.0,26013.0,1.858985]
[1693518740637,0.29809169,26014.0,26013.0,1.858025]
[1693518740841,0.29809169,26014.0,26013.0,1.857785]
[1693518741040,0.29809169,26014.0,26013.0,1.856945]
[1693518741385,0.20176047,26014.0,26013.0,1.855865]
[1693518741589,0.24176047,26014.0,26013.0,1.855805]
[1693518741764,0.24176047,26014.0,26013.0,1.855505]
[1693518742059,0.24176047,26014.0,26013.0,1.855025]
[1693518742262,0.24176047,26014.0,26013.0,1.853225]
[1693518742494,0.24176047,26014.0,26013.0,1.853165]
[1693518742673,0.24176047,26014.0,26013.0,1.852385]
[1693518742968,0.29924852,26014.0,26013.0,1.852325]
[1693518743179,0.29924852,26014.0,26013.0,1.852265]
[1693518743377,0.29924852,26014.0,26013.0,1.852085]
[1693518743580,0.29924852,26014.0,26013.0,1.852265]
[1693518743788,0.29924852,26014.0,26013.0,1.853645]
[1693518743984,0.29924852,26014.0,26013.0,1.853525]
[1693518744216,0.29924852,26014.0,26013.0,1.275931]
[1693518744389,0.24176047,26014.0,26013.0,1.851905]
[1693518744622,0.24176047,26014.0,26013.0,1.850945]
[1693518744795,0.29954902,26014.0,26013.0,1.844045]
[1693518744991,0.29954902,26014.0,26013.0,1.849865]
[1693518745207,0.24176047,26014.0,26013.0,1.863605]
[1693518745409,0.38019721,26014.0,26013.0,1.862945]
[1693518745615,0.38019721,26014.0,26013.0,1.863305]
[1693518745793,0.38019721,26014.0,26013.0,1.868585]
[1693518745994,0.38019721,26014.0,26013.0,1.862885]
[1693518746195,0.38019721,26014.0,26013.0,1.862765]
[1693518746395,0.38019721,26014.0,26013.0,1.863005]
[1693518746597,0.1959608,26014.0,26013.0,1.863425]
[1693518746939,0.1959608,26014.0,26013.0,1.861745]
[1693518747155,0.1959608,26014.0,26013.0,1.861685]
[1693518747510,0.1959608,26014.0,26013.0,1.860905]
[1693518747848,0.1959608,26014.0,26013.0,2.42385178]
[1693518748146,0.1959608,26014.0,26013.0,2.42097178]
[1693518748371,0.1959608,26014.0,26013.0,2.41953178]
[1693518748648,0.1959608,26014.0,26013.0,2.41977178]
[1693518748885,0.1959608,26014.0,26013.0,2.41917178]
[1693518749062,0.1959608,26014.0,26013.0,2.41857178]
[1693518749221,0.24824407,26014.0,26013.0,2.44413178]
[1693518749418,0.24824407,26014.0,26013.0,2.46069178]
[1693518749619,0.24824407,26014.0,26013.0,2.46825178]
[1693518749842,0.24824407,26014.0,26013.0,2.46765178]
[1693518750042,0.10980733,26014.0,26013.0,2.77929178]
[1693518750220,0.10980733,26014.0,26013.0,2.77833178]
[1693518750425,0.10980733,26014.0,26013.0,2.77761178]
[1693518750626,0.24824407,26014.0,26013.0,2.75697178]
[1693518750870,0.24824407,26014.0,26013.0,2.75673178]
[1693518751072,0.10980733,26014.0,26013.0,2.75781178]
[1693518751272,0.10980733,26014.0,26013.0,2.75697178]
[1693518751469,0.10980733,26014.0,26013.0,2.75589178]
[1693518751691,0.10980733,26014.0,26013.0,2.75541178]
[1693518752026,0.10980733,26014.0,26013.0,2.75481178]
[1693518752235,0.10980733,26014.0,26013.0,2.75457178]
[1693518752462,0.10980733,26014.0,26013.0,2.75481178]
[1693518752687,0.10980733,26014.0,26013.0,2.75829178]
[1693518752903,0.10980733,26014.0,26013.0,2.75409178]
[1693518753120,0.10980733,26014.0,26013.0,2.94582178]
[1693518753275,0.10980733,26014.0,26013.0,2.94678178]
[1693518753443,0.10980733,26014.0,26013.0,2.94918178]
[1693518753658,0.10980733,26014.0,26013.0,2.95062178]
[1693518753861,0.10980733,26014.0,26013.0,2.95122178]
[1693518754247,0.10980733,26014.0,26013.0,2.95002178]
[1693518754420,0.10980733,26014.0,26013.0,2.94822178]
[1693518754669,0.10980733,26014.0,26013.0,2.95266178]
[1693518754873,0.10980733,26014.0,26013.0,2.95410178]
[1693518755066,0.10980733,26014.0,26013.0,2.95266178]
[1693518755272,0.10980733,26014.0,26013.0,2.94426178]
[1693518755471,0.24824407,26014.0,26013.0,2.94402178]
[1693518755692,0.24824407,26014.0,26013.0,2.94138178]
[1693518755912,0.10980733,26014.0,26013.0,2.94258178]
[1693518756322,0.10980733,26014.0,26013.0,2.94234178]
[1693518756535,0.10980733,26014.0,26013.0,2.94066178]
[1693518756916,0.10980733,26014.0,26013.0,2.95482178]
[1693518757071,0.10980733,26014.0,26013.0,2.95326178]
[1693518757247,0.10980733,26014.0,26013.0,2.94018178]
[1693518757454,0.10980733,26014.0,26013.0,2.94054178]
[1693518757697,0.10980733,26014.0,26013.0,2.93994178]
[1693518758041,0.10980733,26014.0,26013.0,2.93646178]
[1693518758173,0.10980733,26014.0,26013.0,2.94462178]
[1693518758380,0.10980733,26014.0,26013.0,2.94342178]
[1693518758584,0.10980733,26014.0,26013.0,2.94522178]
[1693518758782,0.10980733,26014.0,26013.0,2.94474178]
[1693518758978,0.10980733,26014.0,26013.0,2.94546178]
[1693518759180,0.10980733,26014.0,26013.0,2.94570178]
[1693518759587,0.10980733,26014.0,26013.0,2.94546178]
[1693518759789,0.10980733,26014.0,26013.0,2.93430178]
[1693518759998,0.10980733,26014.0,26013.0,2.93214178]
[1693518760220,0.10980733,26014.0,26013.0,2.92698178]
[1693518760443,0.10980733,26014.0,26013.0,2.92638178]
[1693518760647,0.10980733,26014.0,26013.0,2.92770178]
[1693518760849,0.10980733,26014.0,26013.0,2.92734178]
[1693518761025,0.10980733,26014.0,26013.0,2.93022178]
[1693518761227,0.10980733,26014.0,26013.0,2.92842178]
[1693518761431,0.10980733,26014.0,26013.0,2.92794178]
[1693518761589,0.10980733,26014.0,26013.0,2.92890178]
[1693518761789,0.10980733,26014.0,26013.0,2.93058178]
[1693518761997,0.10980733,26014.0,26013.0,2.92830178]
[1693518762203,0.10980733,26014.0,26013.0,2.92794178]
[1693518762464,0.10980733,26014.0,26013.0,2.93778178]
[1693518762671,0.10980733,26014.0,26013.0,2.93610178]
[1693518762975,0.10980733,26014.0,26013.0,2.93706178]
[1693518763150,0.10980733,26014.0,26013.0,2.93778178]
[1693518763351,0.10980733,26014.0,26013.0,2.93658178]
[1693518763567,0.24824407,26014.0,26013.0,2.93646178]
[1693518763796,0.24824407,26014.0,26013.0,2.93562178]
[1693518763930,0.24824407,26014.0,26013.0,2.92842178]
[1693518764130,0.24824407,26014.0,26013.0,2.92674178]
[1693518764329,0.24824407,26014.0,26013.0,2.96250178]
[1693518764536,0.10980733,26014.0,26013.0,2.95626178]
[1693518764877,0.10980733,26014.0,26013.0,2.95638178]
[1693518765010,0.10980733,26014.0,26013.0,2.95674178]
[1693518765217,0.10980733,26014.0,26013.0,2.94858178]
[1693518765417,0.10980733,26014.0,26013.0,2.94882178]
[1693518765677,0.10980733,26014.0,26013.0,2.94906178]
[1693518765973,0.10980733,26014.0,26013.0,2.94138178]
[1693518766180,0.10980733,26014.0,26013.0,2.94174178]
[1693518766407,0.10980733,26014.0,26013.0,2.94834178]
[1693518766621,0.10980733,26014.0,26013.0,2.94678178]
[1693518766997,0.10980733,26014.0,26013.0,2.94714178]
[1693518767193,0.10980733,26014.0,26013.0,2.94270178]
[1693518767393,0.10980733,26014.0,26013.0,2.94258178]
[1693518767573,0.10980733,26014.0,26013.0,2.91642178]
[1693518767779,0.24824407,26014.0,26013.0,2.91654178]
[1693518767980,0.24824407,26014.0,26013.0,2.91726178]
[1693518768134,0.24824407,26014.0,26013.0,2.92290178]
[1693518768340,0.25907359,26014.0,26013.0,0.38554]
[1693518768541,0.30513269,26014.0,26013.0,0.966314]
[1693518768750,0.30513269,26014.0,26013.0,0.969014]
[1693518769200,0.30513269,26014.0,26013.0,1.545648]
[1693518769399,0.30513269,26014.0,26013.0,1.545888]
[1693518769654,0.30513269,26014.0,26013.0,1.546848]
[1693518769826,0.30513269,26014.0,26013.0,1.546548]
[1693518770008,0.30513269,26014.0,26013.0,1.546428]
[1693518770210,0.30513269,26014.0,26013.0,1.548888]
[1693518770419,0.48973524,26014.0,26013.0,1.548828]
[1693518770618,0.48973524,26014.0,26013.0,1.549068]
[1693518771036,0.48973524,26014.0,26013.0,1.545828]
[1693518771234,0.48973524,26014.0,26013.0,1.546548]
[1693518771436,0.48973524,26014.0,26013.0,1.545828]
[1693518771649,0.48973524,26014.0,26013.0,1.545588]
[1693518771852,0.52973524,26014.0,26013.0,0.969014]
[1693518772104,0.52972701,26014.0,26013.0,0.670934]
[1693518772252,0.34513269,26014.0,26013.0,0.670934]
[1693518772474,0.52971971,26014.0,26013.0,1.250748]
[1693518772629,0.52971971,26014.0,26013.0,1.248108]
[1693518772835,0.34513269,26014.0,26013.0,1.250328]
[1693518773077,0.34513269,26014.0,26013.0,1.250988]
[1693518773294,0.34506787,26014.0,26013.0,1.251408]
[1693518773520,0.5296468,26014.0,26013.0,0.674354]
[1693518773657,0.5296468,26014.0,26013.0,0.673874]
[1693518773864,0.5296468,26014.0,26013.0,0.673814]
[1693518774272,0.5296468,26014.0,26013.0,0.673874]
[1693518774473,0.5296468,26014.0,26013.0,0.674114]
[1693518774654,0.5296468,26014.0,26013.0,0.673574]
[1693518774861,0.29935129,26014.0,26013.0,0.673454]
[1693518775194,0.29935129,26014.0,26013.0,0.673514]
[1693518775405,0.29935129,26014.0,26013.0,0.673394]
[1693518775577,0.29935129,26014.0,26013.0,0.673814]
[1693518775777,0.29935129,26014.0,26013.0,0.676154]
[1693518775973,0.29935129,26014.0,26013.0,0.675374]
[1693518776172,0.29935129,26014.0,26013.0,0.675314]
[1693518776506,0.29935129,26014.0,26013.0,0.676814]
[1693518776719,0.29935129,26014.0,26013.0,0.676154]
[1693518776927,0.29935129,26014.0,26013.0,1.252608]
[1693518777128,0.29935129,26014.0,26013.0,1.252788]
[1693518777374,0.29935129,26014.0,26013.0,1.252308]
[1693518777576,0.29935129,26014.0,26013.0,1.252728]
[1693518777776,0.29935129,26014.0,26013.0,1.252608]
[1693518778129,0.29935129,26014.0,26013.0,1.251828]
[1693518778500,0.29935129,26014.0,26013.0,1.251048]
[1693518778684,0.29935129,26014.0,26013.0,1.251108]
[1693518779006,0.29935129,26014.0,26013.0,1.247208]
[1693518779388,0.29935129,26014.0,26013.0,1.249848]
[1693518779590,0.29935129,26014.0,26013.0,1.248528]
[1693518779747,0.29935129,26014.0,26013.0,1.249608]
[1693518779943,0.29935129,26014.0,26013.0,1.249548]
[1693518780165,0.29935129,26014.0,26013.0,1.248828]
[1693518780366,0.29935129,26014.0,26013.0,1.825582]
[1693518780617,0.29935129,26014.0,26013.0,1.825462]
[1693518780835,0.29935129,26014.0,26013.0,1.825582]
[1693518781031,0.29935129,26014.0,26013.0,1.826182]
[1693518781232,0.29935129,26014.0,26013.0,1.825882]
[1693518781391,0.29935129,26014.0,26013.0,1.825942]
[1693518781587,0.29935129,26014.0,26013.0,1.826002]
[1693518781818,0.29935129,26014.0,26013.0,1.825342]
[1693518781997,0.29935129,26014.0,26013.0,1.825762]
[1693518782357,0.29935129,26014.0,26013.0,1.825942]
[1693518782587,0.29935129,26014.0,26013.0,1.825822]
[1693518782787,0.29935129,26014.0,26013.0,1.824622]
[1693518782920,0.29935129,26014.0,26013.0,1.825102]
[1693518783127,0.29935129,26014.0,26013.0,1.825282]
[1693518783330,0.29935129,26014.0,26013.0,1.824922]
[1693518783696,0.29935129,26014.0,26013.0,1.824442]
[1693518783902,0.29935129,26014.0,26013.0,1.824202]
[1693518784220,0.29935129,26014.0,26013.0,1.823842]
[1693518784422,0.38045999,26014.0,26013.0,2.22970878]
[1693518784624,0.19588106,26014.0,26013.0,2.23624878]
[1693518784850,0.19588106,26014.0,26013.0,2.23570878]
[1693518785204,0.19588106,26014.0,26013.0,2.23498878]
[1693518785407,0.19588106,26014.0,26013.0,2.23438878]
[1693518785607,0.19588106,26014.0,26013.0,2.23276878]
[1693518785811,0.38045999,26014.0,26013.0,2.24968878]
[1693518786144,0.19588106,26014.0,26013.0,2.24986878]
[1693518786343,0.19588106,26014.0,26013.0,2.24866878]
[1693518786545,0.19588106,26014.0,26013.0,2.24548878]
[1693518786679,0.19588106,26014.0,26013.0,2.24188878]
[1693518786876,0.19588106,26014.0,26013.0,2.24182878]
[1693518787077,0.15588106,26014.0,26013.0,2.24188878]
[1693518787349,0.15588106,26014.0,26013.0,2.24320878]
[1693518787350,0.19588106,26014.0,26013.0,2.24320878]
[1693518787530,0.19588106,26014.0,26013.0,2.24302878]
[1693518787665,0.19088106,26014.0,26013.0,2.24296878]
[1693518787867,0.19088106,26014.0,26013.0,2.24440878]
[1693518788073,0.24316147,26014.0,26013.0,2.41282878]
[1693518788272,0.24316147,26014.0,26013.0,2.61810878]
[1693518788674,0.24316147,26014.0,26013.0,2.60982878]
[1693518788865,0.24316147,26014.0,26013.0,2.60946878]
[1693518789094,0.24316147,26014.0,26013.0,2.60754878]
[1693518789315,0.24316147,26014.0,26013.0,2.60910878]
[1693518789451,0.24316147,26014.0,26013.0,2.60862878]
[1693518789657,0.24316147,26014.0,26013.0,2.60682878]
[1693518789880,0.10473965,26014.0,26013.0,2.60658878]
[1693518790209,0.10473965,26014.0,26013.0,2.60934878]
[1693518790412,0.10473965,26014.0,26013.0,2.61258878]
[1693518790576,0.10473965,26014.0,26013.0,2.61234878]
[1693518790775,0.10473965,26014.0,26013.0,2.61246878]
[1693518790978,0.10473965,26014.0,26013.0,2.61234878]
[1693518791193,0.10473965,26014.0,26013.0,2.87389025]
[1693518791376,0.10473965,26014.0,26013.0,2.87341025]
[1693518791729,0.10473965,26014.0,26013.0,2.87509025]
[1693518791918,0.10473965,26014.0,26013.0,2.87329025]
[1693518792118,0.10473965,26014.0,26013.0,2.87101025]
[1693518792333,0.10473965,26014.0,26013.0,2.87137025]
[1693518792562,0.10473965,26014.0,26013.0,2.87029025]
[1693518792764,0.10473965,26014.0,26013.0,2.87089025]
[1693518792965,0.10473965,26014.0,26013.0,2.67821025]
[1693518793171,0.10473965,26014.0,26013.0,2.67797025]
[1693518793324,0.10473965,26014.0,26013.0,2.67689025]
[1693518793526,0.10473965,26014.0,26013.0,2.67281025]
[1693518793746,0.10473965,26014.0,26013.0,2.67089025]
[1693518793948,0.10473965,26014.0,26013.0,2.67005025]
[1693518794278,0.10473965,26014.0,26013.0,2.67029025]
[1693518794474,0.14473965,26014.0,26013.0,2.52191025]
[1693518794704,0.14473965,26014.0,26013.0,2.51027025]
[1693518794862,0.14473965,26014.0,26013.0,2.50835025]
[1693518795064,0.14473965,26014.0,26013.0,2.50889025]
[1693518795263,0.14473965,26014.0,26013.0,2.50829025]
[1693518795460,0.14473965,26014.0,26013.0,2.50817025]
[1693518795667,0.14473965,26014.0,26013.0,2.50715025]
[1693518795862,0.14473965,26014.0,26013.0,2.50697025]
[1693518796045,0.14473965,26014.0,26013.0,2.50685025]
[1693518796244,0.14473965,26014.0,26013.0,2.50835025]
[1693518796450,0.14473965,26014.0,26013.0,2.50769025]
[1693518796673,0.14473965,26014.0,26013.0,2.50763025]
[1693518796996,0.14473965,26014.0,26013.0,2.50727025]
[1693518797143,0.14473965,26014.0,26013.0,2.50715025]
[1693518797351,0.14473965,26014.0,26013.0,2.50631025]
[1693518797572,0.14473965,26014.0,26013.0,2.50409025]
[1693518797872,0.14473965,26014.0,26013.0,2.50337025]
[1693518798059,0.14473965,26014.0,26013.0,2.50325025]
[1693518798405,0.14473965,26014.0,26013.0,2.49813025]
[1693518798694,0.14473965,26014.0,26013.0,2.49795025]
[1693518798898,0.14473965,26014.0,26013.0,2.49777025]
[1693518799124,0.14473965,26014.0,26013.0,2.68967025]
[1693518799333,0.14473965,26014.0,26013.0,2.68949025]
[1693518799539,0.14473965,26014.0,26013.0,2.68913025]
[1693518799711,0.10473965,26014.0,26013.0,2.70233025]
[1693518799924,0.10473965,26014.0,26013.0,2.70485025]
[1693518800167,0.10473965,26014.0,26013.0,2.84201025]
[1693518800309,0.10473965,26014.0,26013.0,2.70701025]
[1693518800507,0.10473965,26014.0,26013.0,3.14789025]
[1693518800705,0.10473965,26014.0,26013.0,2.99975025]
[1693518800917,0.10473965,26014.0,26013.0,2.99513025]
[1693518801252,0.10473965,26014.0,26013.0,2.99531025]
[1693518801412,0.10473965,26014.0,26013.0,2.99525025]
[1693518801615,0.10473965,26014.0,26013.0,2.99621025]
[1693518801836,0.10473965,26014.0,26013.0,2.99615025]
[1693518802019,0.10473965,26014.0,26013.0,2.99549025]
[1693518802216,0.10473965,26014.0,26013.0,2.99537025]
[1693518802425,0.10473965,26014.0,26013.0,2.99519025]
[1693518802620,0.10473965,26014.0,26013.0,2.99501025]
[1693518802823,0.10473965,26014.0,26013.0,2.99405025]
[1693518803054,0.10473965,26014.0,26013.0,2.99579025]
[1693518803223,0.10473965,26014.0,26013.0,2.99507025]
[1693518803428,0.10473965,26014.0,26013.0,2.99447025]
[1693518803627,0.10473965,26014.0,26013.0,2.99483025]
[1693518803855,0.10473965,26014.0,26013.0,2.99459025]
[1693518804053,0.10473965,26014.0,26013.0,2.99405025]
[1693518804264,0.10473965,26014.0,26013.0,2.99483025]
[1693518804619,0.10473965,26014.0,26013.0,2.99477025]
[1693518804826,0.10473965,26014.0,26013.0,2.99435025]
[1693518805220,0.10473965,26014.0,26013.0,2.99405025]
[1693518805427,0.10473965,26014.0,26013.0,2.99273025]
[1693518805851,0.10473965,26014.0,26013.0,2.99303025]
[1693518806086,0.10473965,26014.0,26013.0,2.99279025]
[1693518806313,0.10473965,26014.0,26013.0,2.99627025]
[1693518806483,0.10473965,26014.0,26013.0,2.99549025]
[1693518806692,0.10473965,26014.0,26013.0,2.99639025]
[1693518806924,0.10473965,26014.0,26013.0,2.99609025]
[1693518807108,0.10473965,26014.0,26013.0,2.99603025]
[1693518807258,0.10473965,26014.0,26013.0,2.99597025]
[1693518807458,0.10473965,26014.0,26013.0,2.99645025]
[1693518807713,0.10473965,26014.0,26013.0,2.99651025]
[1693518808113,0.10473965,26014.0,26013.0,2.99699025]
[1693518808334,0.10473965,26014.0,26013.0,2.99705025]
[1693518808863,0.10473965,26014.0,26013.0,2.99687025]
[1693518809090,0.24316147,26014.0,26013.0,2.99675025]
[1693518809295,0.24316147,26014.0,26013.0,2.99597025]
[1693518809511,0.24316147,26014.0,26013.0,2.99561025]
[1693518809715,0.24316147,26014.0,26013.0,2.99567025]
[1693518809918,0.10473965,26014.0,26013.0,2.94217602]
[1693518810126,0.10473965,26014.0,26013.0,2.93857602]
[1693518810298,0.10473965,26014.0,26013.0,2.93809602]
[1693518810506,0.10473965,26014.0,26013.0,2.93833602]
[1693518810700,0.10473965,26014.0,26013.0,2.93659602]
[1693518810906,0.10473965,26014.0,26013.0,2.93665602]
[1693518811111,0.10473965,26014.0,26013.0,2.93695602]
[1693518811808,0.10473965,26014.0,26013.0,2.93647602]
[1693518812781,0.10473965,26014.0,26013.0,2.93671602]
[1693518812989,0.10473965,26014.0,26013.0,2.93617602]
[1693518813524,0.10473965,26014.0,26013.0,2.93599602]
[1693518813947,0.10473965,26014.0,26013.0,2.74403602]
[1693518814150,0.10473965,26014.0,26013.0,2.74409602]
[1693518814334,0.10473965,26014.0,26013.0,2.93629602]
[1693518814529,0.10473965,26014.0,26013.0,2.93689602]
[1693518814712,0.10473965,26014.0,26013.0,2.93575602]
[1693518814916,0.10473965,26014.0,26013.0,2.93581602]
[1693518815148,0.10473965,26014.0,26013.0,2.93593602]
[1693518815318,0.10473965,26014.0,26013.0,2.93599602]
[1693518815565,0.10473965,26014.0,26013.0,2.93587602]
[1693518815743,0.10473965,26014.0,26013.0,2.93617602]
[1693518815916,0.10473965,26014.0,26013.0,2.93605602]
[1693518816100,0.10473965,26014.0,26013.0,2.93617602]
[1693518816297,0.10473965,26014.0,26013.0,2.93713602]
[1693518816519,0.10473965,26014.0,26013.0,2.93677602]
[1693518816717,0.10473965,26014.0,26013.0,2.93701602]
[1693518817012,0.10473965,26014.0,26013.0,2.93713602]
[1693518817212,0.10473965,26014.0,26013.0,2.93719602]
[1693518817345,0.10473965,26014.0,26013.0,2.93635602]
[1693518817541,0.10473965,26014.0,26013.0,2.93641602]
[1693518817749,0.10473965,26014.0,26013.0,2.93647602]
[1693518817923,0.10473965,26014.0,26013.0,2.93653602]
[1693518818142,0.10473965,26014.0,26013.0,2.74000878]
[1693518818344,0.10473965,26014.0,26013.0,2.74834878]
[1693518818554,0.10473965,26014.0,26013.0,2.87950878]
[1693518818757,0.10473965,26014.0,26013.0,2.88046878]
[1693518818967,0.10473965,26014.0,26013.0,2.88094878]
[1693518819170,0.10473965,26014.0,26013.0,2.88154878]
[1693518819565,0.10473965,26014.0,26013.0,2.88034878]
[1693518819767,0.10473965,26014.0,26013.0,2.88022878]
[1693518819940,0.10473965,26014.0,26013.0,2.88034878]
[1693518820295,0.10473965,26014.0,26013.0,2.87890878]
[1693518820492,0.10473965,26014.0,26013.0,2.98943128]
[1693518820668,0.10473965,26014.0,26013.0,2.74900878]
[1693518820828,0.10473965,26014.0,26013.0,2.87878878]
[1693518821024,0.10473965,26014.0,26013.0,3.07498898]
[1693518821228,0.10473965,26014.0,26013.0,2.94448898]
[1693518821426,0.10473965,26014.0,26013.0,2.93866898]
[1693518821647,0.10473965,26014.0,26013.0,2.93800898]
[1693518821841,0.10473965,26014.0,26013.0,2.94280898]
[1693518822046,0.10473965,26014.0,26013.0,2.94292898]
[1693518822266,0.10473965,26014.0,26013.0,2.94256898]
[1693518822470,0.10473965,26014.0,26013.0,2.94184898]
[1693518822673,0.10473965,26014.0,26013.0,2.94148898]
[1693518823026,0.10473965,26014.0,26013.0,2.94130898]
[1693518823455,0.10473965,26014.0,26013.0,2.94112898]
[1693518823680,0.10473965,26014.0,26013.0,2.94064898]
[1693518824000,0.10473965,26014.0,26013.0,2.93626898]
[1693518824316,0.10473965,26014.0,26013.0,2.93644898]
[1693518824493,0.10473965,26014.0,26013.0,2.93602898]
[1693518824749,0.10473965,26014.0,26013.0,2.93422898]
[1693518824933,0.10473965,26014.0,26013.0,2.93584898]
[1693518825075,0.10473965,26014.0,26013.0,2.93686898]
[1693518825281,0.10473965,26014.0,26013.0,2.93662898]
[1693518825505,0.10473965,26014.0,26013.0,2.93626898]
[1693518825701,0.10473965,26014.0,26013.0,2.93644898]
[1693518825907,0.10473965,26014.0,26013.0,2.93974898]
[1693518826106,0.10473965,26014.0,26013.0,2.93968898]
[1693518826309,0.10473965,26014.0,26013.0,2.93944898]
[1693518826559,0.10473965,26014.0,26013.0,2.93938898]
[1693518826729,0.10473965,26014.0,26013.0,2.94106898]
[1693518827133,0.10473965,26014.0,26013.0,2.93992898]
[1693518827372,0.10473965,26014.0,26013.0,2.93986898]
[1693518827569,0.10473965,26014.0,26013.0,2.93980898]
[1693518827772,0.10473965,26014.0,26013.0,2.93968898]
[1693518827974,0.10473965,26014.0,26013.0,2.94124898]
[1693518828175,0.10473965,26014.0,26013.0,2.94004898]
[1693518828407,0.10473965,26014.0,26013.0,2.94106898]
[1693518828625,0.10473965,26014.0,26013.0,2.94118898]
[1693518828831,0.10473965,26014.0,26013.0,2.94322898]
[1693518828974,0.10473965,26014.0,26013.0,2.94310898]
[1693518829369,0.10473965,26014.0,26013.0,2.94304898]
[1693518829634,0.10473965,26014.0,26013.0,2.94292898]
[1693518829767,0.10473965,26014.0,26013.0,2.94436898]
[1693518829975,0.10473965,26014.0,26013.0,2.94814878]
[1693518830170,0.10473965,26014.0,26013.0,2.93458878]
[1693518830383,0.10473965,26014.0,26013.0,2.94490878]
[1693518830588,0.10473965,26014.0,26013.0,2.94562878]
[1693518830953,0.10473965,26014.0,26013.0,2.92570878]
[1693518831154,0.10473965,26014.0,26013.0,2.92606878]
[1693518831436,0.10473965,26014.0,26013.0,2.93254878]
[1693518831664,0.10473965,26014.0,26013.0,2.93110878]
[1693518831830,0.10473965,26014.0,26013.0,2.93170878]
[1693518832038,0.10473965,26014.0,26013.0,2.93098878]
[1693518832252,0.10473965,26014.0,26013.0,2.93038878]
[1693518832450,0.10473965,26014.0,26013.0,2.93170878]
[1693518832659,0.10473965,26014.0,26013.0,2.92990878]
[1693518832882,0.10473965,26014.0,26013.0,2.92930878]
[1693518833032,0.10473965,26014.0,26013.0,2.92858878]
[1693518833232,0.10473965,26014.0,26013.0,2.92798878]
[1693518833448,0.10473965,26014.0,26013.0,2.92738878]
[1693518833651,0.10473965,26014.0,26013.0,2.92618878]
[1693518833871,0.10473965,26014.0,26013.0,2.92546878]